[Event "13th Asrian Memorial 2022"]
[Site "Yerevan"]
[Date "2022.06.12"]
[Round "6.4"]
[White "Andriasian, Zaven"]
[Black "Yeritsyan, Hayk"]
[Result "1-0"]
[ECO "C54"]
[WhiteElo "2584"]
[BlackElo "2291"]
[Annotator "TA"]
[PlyCount "65"]
[EventDate "2022.06.07"]
[EventType "swiss"]
[EventCountry "ARM"]
[SourceTitle "playchess.com"]
[Source "ChessBase"]
[SourceQuality "1"]
[TimeControl "40/5400+30:1800+30"]

{[%evp 10,65,12,12,23,12,44,39,33,6,16,5,15,11,22,14,17,30,33,25,22,13,38,51,35,45,35,41,41,42,45,19,27,22,21,18,30,37,44,37,40,0,120,117,123,124,136,132,127,126,192,205,296,287,367,353,565,505]} 1. e4 {[%emt 0:00:03]} e5 {[%emt 0:01:25]} 2. Nf3 {[%emt 0:00:09]} Nc6 {[%emt 0:00:25]} 3. Bc4 {[%emt 0:00:08]} Bc5 {[%emt 0:00:14]} 4. d3 {[%emt 0:00:18]} Nf6 {[%emt 0:00:23]} 5. Nbd2 {[%emt 0:00:10]} d6 {[%emt 0:00:57]} 6. c3 {[%emt 0:00:09]} h6 {[%emt 0:01:39] 6...a5 is setting a new trend. C54: Giuoco Piano: 4 c3 Nf6, main lines with 5 d4 and 5 d3.} 7. Nf1 {[%emt 0:05:24]} Be6 {[%emt 0:01:03]} 8. Bxe6 {[%emt 0:02:33]} fxe6 {[%emt 0:00:02] White is slightly better.} 9. Ng3 {[%emt 0:00:25]} (9. b4 $5 {[%cal Rb4c5]} Bb6 10. a4 $11) 9... O-O {[%emt 0:04:17] [#]} 10. O-O $146 {[%emt 0:00:16]} ({Predecessor:} 10. d4 exd4 11. cxd4 Bb6 12. Be3 Ng4 13. Qb3 d5 14. e5 Nxe3 15. Qxe3 Qe7 16. O-O {0-1 (54) Van,A (754)-Qiao,J (1116) Windsor 2015}) 10... Bb6 {[%emt 0:00:53]} 11. b4 {[%emt 0:06:45][%cal Bb2b4,Bb4b5][%mdl 32]} Qe8 {[%emt 0:06:37]} 12. a4 {[%emt 0:01:46] a5 is the strong threat.} a5 {[%emt 0:05:08]} 13. b5 {[%emt 0:00:32]} Nb8 {[%emt 0:07:36]} 14. Nd2 {[%emt 0:02:21]} Nbd7 {[%emt 0:01:27]} 15. Nc4 {[%emt 0:00:14]} Bc5 {[%emt 0:02:51]} 16. d4 {[%emt 0:01:38]} exd4 {[%emt 0:00:25]} 17. cxd4 {[%emt 0:00:08]} Bb4 {[%emt 0:00:56]} 18. Bd2 {[%emt 0:03:42]} d5 {[%emt 0:07:04]} 19. exd5 {[%emt 0:03:04]} Nxd5 {[%emt 0:01:34]} 20. Re1 {[%emt 0:07:42]} Qg6 {[%emt 0:06:19]} 21. Re4 {[%emt 0:03:54]} Qf6 {[%emt 0:07:17] And now ...N7b6 would win.} 22. Qe1 {[%emt 0:03:44][%csl LRa5,LRe6]} Bxd2 {[%emt 0:01:51]} 23. Nxd2 {[%emt 0:00:15]} Nf4 {[%emt 0:01:00]} 24. Ra3 {[%emt 0:01:33] Black must now prevent Rf3.} Nb6 {[%emt 0:07:41]} 25. Rf3 {[%emt 0:02:11]} Nbd5 {[%emt 0:00:11] [#]} (25... Qg5 $1 $11 {keeps the balance.}) 26. Nh5 $1 $16 {[%emt 0:02:01]} Qg5 {[%emt 0:00:32][%csl Gf4][%cal Rg5g2]} 27. Nxf4 {[%emt 0:00:18]} Nxf4 {[%emt 0:04:16][%csl Gf4][%cal Rg5g2]} 28. g3 $36 {[%emt 0:02:14][%mdl 2048] White is in control.} Nd5 {[%emt 0:07:19]} 29. Rxe6 {[%emt 0:09:53] Strongly threatening Re5.} Rxf3 {[%emt 0:06:16]} (29... Qg4 $16) 30. Nxf3 $18 {[%emt 0:00:15][%cal Bd2f3,Bf3h4,Bh4f5,Bf5e7][%mdl 32] Threatening mate with Re8+.} Qg4 {[%emt 0:02:50] [#]} (30... Qh5 $142) 31. Nh4 $1 {[%emt 0:05:56]} Qxd4 {[%emt 0:12:24]} 32. Nf5 {[%emt 0:00:20]} Qc3 $2 {[%emt 0:00:01]} (32... Qg4) 33. Ne7+ {[%emt 0:00:59] Weighted Error Value: White=0.05 (flawless) /Black=0.34} 1-0

[Event "13th Asrian Memorial 2022"]
[Site "Yerevan"]
[Date "2022.06.12"]
[Round "6.5"]
[White "Petrosian, Tigran L."]
[Black "Davtyan, Arsen"]
[Result "1/2-1/2"]
[ECO "C65"]
[WhiteElo "2553"]
[BlackElo "2308"]
[Annotator "TA"]
[PlyCount "83"]
[EventDate "2022.06.07"]
[EventType "swiss"]
[EventCountry "ARM"]
[SourceTitle "playchess.com"]
[Source "ChessBase"]
[SourceQuality "1"]
[TimeControl "40/5400+30:1800+30"]

{[%evp 9,83,27,22,12,16,10,10,8,21,0,0,0,0,0,26,22,31,7,25,27,31,31,37,37,39,35,33,33,33,33,40,37,43,41,53,38,47,47,47,47,62,56,62,63,114,117,95,69,66,68,70,70,72,75,75,77,77,77,67,68,69,69,65,22,17,0,0,0,0,0,0,0,0,0,0,0]} 1. e4 {[%emt 0:10:29]} e5 {[%emt 0:00:11]} 2. Nf3 {[%emt 0:00:14]} Nc6 {[%emt 0:00:05]} 3. Bb5 {[%emt 0:00:10]} Nf6 {[%emt 0:00:09]} 4. d3 {[%emt 0:00:18]} Bc5 {[%emt 0:00:09]} 5. Bxc6 {[%emt 0:00:39]} dxc6 {[%emt 0:00:06]} 6. Nbd2 {[%emt 0:00:55] C65: Ruy Lopez: Berlin Defence (3...Nf6), unusual lines and 4 0-0 Bc5.} Nd7 {[%emt 0:00:44]} 7. Nc4 {[%emt 0:00:35]} f6 {[%emt 0:03:56]} 8. O-O {[%emt 0:04:06]} O-O {[%emt 0:04:20]} 9. Nh4 {[%emt 0:01:44]} Re8 {[%emt 0:05:30]} 10. Nf5 {[%emt 0:25:40] [#]} Nf8 $146 {[%emt 0:05:17]} ({Predecessor:} 10... Nb6 11. Nce3 Be6 12. Ng3 Nc8 13. Nef5 g6 14. Bh6 Bd7 15. Be3 gxf5 16. Bxc5 f4 {½-½ (40) Marez,S (2398)-Panitevsky,I (2307) ICCF email 2014}) 11. Qg4 {[%emt 0:02:17][%csl Gf5][%cal Rg4g7] [#]} Bxf5 {[%emt 0:04:13]} 12. exf5 {[%emt 0:02:36]} Qd4 {[%emt 0:09:06]} 13. Qe4 {[%emt 0:16:04]} Qxe4 {[%emt 0:06:13]} (13... Nd7 {seems wilder.} 14. a4 a5 15. Bd2 Bb4) 14. dxe4 {[%emt 0:00:12]} Red8 {[%emt 0:00:49]} 15. Be3 {[%emt 0:08:33]} Bxe3 {[%emt 0:04:46]} 16. Nxe3 {[%emt 0:00:20]} Nd7 {[%emt 0:05:03]} 17. f3 {[%emt 0:00:23]} Nc5 {[%emt 0:01:39]} 18. b3 {[%emt 0:01:45]} a5 {[%emt 0:10:53]} 19. Rfd1 {[%emt 0:00:27]} Kf7 {[%emt 0:03:05]} 20. Kf2 {[%emt 0:00:18]} Ke7 {[%emt 0:00:32]} 21. Ke2 {[%emt 0:00:07]} b5 {[%emt 0:08:10]} 22. g4 {[%emt 0:04:34]} h6 {[%emt 0:06:42]} 23. h4 {[%emt 0:00:11]} Rxd1 {[%emt 0:04:48]} 24. Rxd1 $14 {[%emt 0:00:14][%mdl 4096] Endgame KRN-KRN} Nb7 {[%emt 0:03:05]} 25. f4 {[%emt 0:07:43]} exf4 {[%emt 0:04:43]} 26. Ng2 {[%emt 0:00:44] White is more active.} Nc5 {[%emt 0:01:29]} ({Better is} 26... a4 $14) 27. Nxf4 $16 {[%emt 0:05:44]} a4 {[%emt 0:02:02]} 28. Ng6+ {[%emt 0:00:28]} Ke8 $1 {[%emt 0:00:04]} 29. Ke3 {[%emt 0:02:03]} axb3 {[%emt 0:00:20]} 30. axb3 {[%emt 0:00:04]} Ra2 {[%emt 0:00:11]} 31. Rc1 {[%emt 0:02:29]} Nd7 {[%emt 0:00:13] Inhibits e5.} 32. Kf4 {[%emt 0:01:31]} c5 {[%emt 0:00:47]} 33. e5 {[%emt 0:00:13]} fxe5+ {[%emt 0:00:08]} 34. Nxe5 {[%emt 0:00:05]} Nxe5 {[%emt 0:02:00]} 35. Kxe5 {[%emt 0:00:06] KR-KR} c4 {[%emt 0:00:01]} 36. bxc4 {[%emt 0:00:06]} bxc4 {[%emt 0:01:41] The position is equal.} 37. Kd4 {[%emt 0:03:45]} Kf7 {[%emt 0:00:05]} 38. g5 {[%emt 0:00:15]} c3 {[%emt 0:03:54]} 39. Kxc3 {[%emt 0:01:18]} Ra3+ {[%emt 0:00:36]} 40. Kd4 {[%emt 0:00:00]} hxg5 {[%emt 0:00:00]} 41. hxg5 {[%emt 0:02:35]} Rg3 {[%emt 0:02:45]} 42. Rb1 {[%emt 0:04:46] Weighted Error Value: White=0.06 (flawless) /Black=0.04 (flawless)} 1/2-1/2

[Event "13th Asrian Memorial 2022"]
[Site "Yerevan"]
[Date "2022.06.12"]
[Round "6.6"]
[White "Mahdavi, Reza"]
[Black "Davtyan, Artur"]
[Result "1/2-1/2"]
[ECO "B51"]
[WhiteElo "2303"]
[BlackElo "2488"]
[Annotator "TA"]
[PlyCount "94"]
[EventDate "2022.06.07"]
[EventType "swiss"]
[EventCountry "ARM"]
[SourceTitle "playchess.com"]
[Source "ChessBase"]
[SourceQuality "1"]
[TimeControl "40/5400+30:1800+30"]

{[%evp 12,94,17,22,8,15,21,10,11,16,22,0,0,0,0,0,3,0,0,-37,-21,-18,-20,-13,-24,-24,-11,-18,-18,-39,-34,-70,-59,-102,-102,-104,-101,-121,-64,-48,-33,-33,-33,-33,-33,-44,-49,-122,-135,-149,-125,-125,-132,-116,-95,-85,-75,-101,-99,-104,-104,-103,-112,-109,-86,-105,-80,-108,0,0,0,0,0,0,0,0,0,0,0,0,0,0,0,0,0]} 1. e4 {[%emt 0:00:23]} c5 {[%emt 0:00:07]} 2. Nf3 {[%emt 0:00:05]} d6 {[%emt 0:00:05]} 3. Bb5+ {[%emt 0:00:05]} Nd7 {[%emt 0:00:27]} 4. c3 {[%emt 0:00:08]} Ngf6 {[%emt 0:00:14]} 5. Qe2 {[%emt 0:00:08]} a6 {[%emt 0:00:17]} 6. Ba4 {[%emt 0:00:01][%cal Bb5a4,Ba4c2,Bc2d3][%mdl 32]} b5 {[%emt 0:00:11]} 7. Bc2 {[%emt 0:00:02]} Bb7 {[%emt 0:00:14] B51: Sicilian: Moscow Variation (3 Bb5+) without 3...Bd7.} 8. d4 {[%emt 0:00:07]} e6 {[%emt 0:00:11]} 9. O-O {[%emt 0:00:06]} Be7 {[%emt 0:00:10]} 10. Re1 {[%emt 0:00:04]} Qc7 {[%emt 0:00:14] is the new trend.} 11. Bd3 {[%emt 0:00:02]} O-O {[%emt 0:00:18]} 12. Nbd2 {[%emt 0:00:04]} Rfc8 {[%emt 0:00:12]} 13. Nf1 {[%emt 0:00:06]} b4 {[%emt 0:00:04] [#]} 14. Bd2 $146 {[%emt 0:02:08]} ({Predecessor:} 14. cxb4 cxd4 15. Nxd4 Ne5 16. Ng3 Qb6 17. Nc2 d5 18. Be3 Qc6 19. Nd4 Qd7 20. a3 dxe4 {0-1 (40) Rasik,V (2451)-Keymer,V (2591) Tornelo INT 2021}) 14... a5 {[%emt 0:00:47]} 15. Rac1 {[%emt 0:03:19]} bxc3 {[%emt 0:01:35]} (15... d5 $5 {[%cal Rd5e4]} 16. Ng3 dxe4 17. Nxe4 Bxe4 18. Bxe4 Nxe4 19. Qxe4 Qd8 $11) 16. bxc3 {[%emt 0:02:31]} a4 {[%emt 0:02:13]} 17. Ng3 {[%emt 0:03:16]} Rab8 {[%emt 0:00:14]} 18. Rb1 {[%emt 0:13:58]} Bf8 {[%emt 0:03:53]} 19. Rec1 {[%emt 0:02:25]} Bc6 {[%emt 0:18:49]} 20. Qd1 {[%emt 0:12:35]} h6 {[%emt 0:01:55]} 21. h3 {[%emt 0:02:17]} d5 {[%emt 0:00:35][%cal Rd5e4]} 22. Qe2 {[%emt 0:12:15]} c4 {[%emt 0:19:54]} 23. Bc2 {[%emt 0:00:06]} dxe4 {[%emt 0:00:32]} 24. Nxe4 {[%emt 0:00:05]} Nxe4 {[%emt 0:01:08]} (24... Bxe4 $17 25. Bxe4 a3 26. Rxb8 Rxb8) 25. Bxe4 $15 {[%emt 0:00:01]} Bxe4 {[%emt 0:00:31]} 26. Qxe4 {[%emt 0:00:02]} Nf6 {[%emt 0:01:33]} 27. Qc2 {[%emt 0:00:23]} a3 {[%emt 0:00:23]} 28. Ne5 {[%emt 0:16:54]} Bd6 {[%emt 0:03:46]} 29. Rxb8 {[%emt 0:02:05]} ({White should play} 29. f4 $15) 29... Rxb8 $17 {[%emt 0:01:30]} 30. Qa4 {[%emt 0:00:11]} Bxe5 {[%emt 0:06:04]} 31. dxe5 {[%emt 0:00:07]} Qxe5 {[%emt 0:00:03] [#] Strongly threatening ...Qe2.} 32. Qxa3 {[%emt 0:07:25]} Qe2 {[%emt 0:01:19]} 33. Be3 {[%emt 0:01:30]} Nd5 {[%emt 0:04:48]} 34. Bd4 {[%emt 0:00:43]} Qe4 {[%emt 0:00:10]} 35. Qa7 {[%emt 0:05:39]} Rb2 {[%emt 0:05:23] [#] ( -> ...Nf4)} 36. Qa8+ {[%emt 0:00:38]} Kh7 {[%emt 0:00:01]} 37. a4 {[%emt 0:07:24][%cal Ba2a4,Ba4a5][%mdl 32]} ({Not} 37. Qf8 $2 e5 38. Bxe5 Qxe5 $19) 37... e5 {[%emt 0:00:22]} 38. Bc5 {[%emt 0:00:02]} Qd3 {[%emt 0:22:20]} 39. Qc8 {[%emt 0:02:19]} Rb1 {[%emt 0:03:41]} ({Of course not} 39... Nxc3 $6 40. Rxc3 Qxc3 41. Qf5+ Kh8 42. Qc8+ Kh7 43. Qf5+ Kh8 44. Qc8+ Kh7 $11) (39... Nf4 $17 40. Kh2 Qe4) 40. Rxb1 $11 {[%emt 0:00:24] The position is equal.} Qxb1+ {[%emt 0:00:00][%mdl 4096] Endgame KQB-KQN} 41. Kh2 {[%emt 0:00:01] And now a5 would win.} Nxc3 {[%emt 0:02:00]} 42. a5 {[%emt 0:00:13]} Ne2 {[%emt 0:00:15][%csl Ge2][%cal Rb1g1]} 43. f3 {[%emt 0:00:01]} Nf4 {[%emt 0:21:23] Hoping for ...Qc2.} 44. Be3 {[%emt 0:00:54]} Nd5 {[%emt 0:00:33]} 45. Bc5 {[%emt 0:00:58] a6 is the strong threat.} Qc2 {[%emt 0:01:16]} (45... Nf4 $5 46. Be3 Qc2 47. Bxf4 exf4 $11) 46. Qb7 {[%emt 0:03:21][%csl LRd5,LRf7]} Qd2 {[%emt 0:08:17] aiming for ...Nf4.} ({Much less strong is} 46... Nf4 47. Qe4+ Qxe4 48. fxe4 $16) 47. Qxf7 {[%emt 0:00:07] Threatens to win with a6.} Nf4 {[%emt 0:00:01] Weighted Error Value: White=0.07 (flawless) /Black=0.07 (flawless)} 1/2-1/2

[Event "13th Asrian Memorial 2022"]
[Site "Yerevan"]
[Date "2022.06.12"]
[Round "6.7"]
[White "Shahinyan, David"]
[Black "Dilanyan, Grigor"]
[Result "1-0"]
[ECO "C44"]
[WhiteElo "2479"]
[BlackElo "2293"]
[Annotator "TA"]
[PlyCount "59"]
[EventDate "2022.06.07"]
[EventType "swiss"]
[EventCountry "ARM"]
[SourceTitle "playchess.com"]
[Source "ChessBase"]
[SourceQuality "1"]
[TimeControl "40/5400+30:1800+30"]

{[%evp 9,59,-12,30,24,35,7,11,0,0,3,22,4,20,-2,0,0,12,4,0,0,11,29,24,0,112,48,77,62,89,91,300,270,353,353,352,355,352,370,368,368,368,368,354,350,348,354,597,591,750,742,1365,1271]} 1. e4 {[%emt 0:30:33]} e5 {[%emt 0:09:44]} 2. Nf3 {[%emt 0:00:07]} Nf6 {[%emt 0:00:26]} 3. d3 {[%emt 0:01:55]} Nc6 {[%emt 0:03:31]} 4. Be2 {[%emt 0:08:22]} h6 {[%emt 0:01:19]} 5. c3 d6 {[%emt 0:00:41]} 6. Nbd2 {[%cal Bb1d2,Bd2f1,Bf1e3][%mdl 32] [#] C44: Ponziani Opening and Scotch Gambit.} g5 $146 {[%cal Bg7g5,Bg5g4][%mdl 32]} ({Predecessor:} 6... Bg4 7. h3 Bxf3 8. Nxf3 d5 9. Qa4 a6 10. Nxe5 Bd6 11. Nxc6 Qd7 12. exd5 O-O {1-0 (72) Nagy,E (2234)-Letay,G (1994) Budapest 2016}) 7. Nf1 g4 {[%emt 0:30:18]} 8. N3d2 {The position is equal.} h5 {[%emt 0:03:34]} 9. Ne3 Bh6 {[%emt 0:11:05]} 10. b4 Ne7 {[%emt 0:18:52]} 11. Bb2 Be6 {[%emt 0:13:41]} 12. Qc2 c6 {[%emt 0:04:50]} 13. c4 {[%cal Bc3c4,Bc4c5][%mdl 32]} a5 {[%emt 0:08:05]} 14. c5 {[%emt 0:02:17]} Bxe3 {[%emt 0:02:54]} 15. fxe3 {And now bxa5 would win.} axb4 16. O-O {[%emt 0:02:25]} (16. Nc4 $5 {[%cal Rc4d6]} Nc8 17. cxd6 $11 (17. O-O Nd7 $11)) 16... Rh6 {[%emt 0:03:21]} (16... Nd7 $1 $11) 17. Nc4 {[%emt 0:00:03]} (17. cxd6 $16 Qxd6 18. Nc4 Bxc4 19. Qxc4) 17... Bxc4 {[%emt 0:00:46]} 18. Qxc4 {[%emt 0:02:28]} d5 {[%emt 0:05:47]} 19. Qxb4 {[%emt 0:01:30]} dxe4 $2 {[%emt 0:01:20] [#] This costs Black the game.} (19... Nd7 $16 {keeps fighting.}) 20. dxe4 $18 {[%emt 0:00:02]} Qa5 {[%emt 0:00:41]} 21. Qc4 {[%emt 0:01:25]} ({Weaker is} 21. Qxb7 Nxe4 22. Bxe5 Nxc5 $16) 21... Qa4 {[%emt 0:07:56]} 22. Bxe5 {[%emt 0:02:54]} Qxc4 {[%emt 0:00:07]} 23. Bxc4 {[%emt 0:00:05]} Nxe4 {[%emt 0:00:07]} 24. Bxf7+ {[%emt 0:07:55] A strong pair of Bishops.} Kd7 {[%emt 0:00:01]} 25. Rf4 {[%emt 0:06:02]} Nxc5 {[%emt 0:01:20]} 26. Rd1+ {[%emt 0:00:35]} Nd5 {[%emt 0:05:18]} 27. e4 {[%emt 0:01:02]} Nxe4 {[%emt 0:00:06] [#]} (27... Re6 {is a better defense.} 28. Bxe6+ (28. exd5 Rxe5 29. dxc6+ Kxc6 $16) 28... Kxe6) 28. Rxe4 {[%emt 0:00:17] White is clearly winning.} Rxa2 {[%emt 0:00:06]} 29. Bf4 {[%emt 0:01:22]} Rh7 {[%emt 0:00:50]} 30. Be6+ {[%emt 0:00:19] Weighted Error Value: White=0.11 (very precise) /Black=0.44} 1-0

[Event "13th Asrian Memorial 2022"]
[Site "Yerevan"]
[Date "2022.06.13"]
[Round "7.1"]
[White "Petrosyan, Manuel"]
[Black "Sargsyan, Shant"]
[Result "0-1"]
[ECO "E48"]
[WhiteElo "2638"]
[BlackElo "2641"]
[Annotator "TA"]
[PlyCount "70"]
[EventDate "2022.06.07"]
[EventType "swiss"]
[EventCountry "ARM"]
[SourceTitle "playchess.com"]
[Source "ChessBase"]
[SourceQuality "1"]
[TimeControl "40/5400+30:1800+30"]

{[%evp 13,70,-8,-5,-6,-5,-1,0,0,0,0,20,16,21,19,0,0,0,0,0,0,0,0,0,-21,-4,-129,-136,-125,-34,-216,-208,-217,-208,-203,-216,-171,-200,-286,-285,-411,-405,-550,-567,-566,-546,-557,-537,-537,-542,-547,-545,-546,-543,-549,-535,-594,-592,-608,-594]} 1. d4 {[%emt 0:01:29] Besenthal,K} Nf6 {[%emt 0:02:56]} 2. c4 {[%emt 0:00:20]} e6 {[%emt 0:00:47]} 3. Nc3 {[%emt 0:00:13]} Bb4 {[%emt 0:00:12]} 4. e3 {[%emt 0:00:19]} O-O {[%emt 0:00:38]} 5. Bd3 {[%emt 0:00:09]} d5 {[%emt 0:00:23]} 6. cxd5 {[%emt 0:00:11]} exd5 {[%emt 0:00:10]} 7. Nge2 {[%emt 0:00:15]} Re8 {[%emt 0:01:44]} 8. Bd2 {[%emt 0:00:08] E48: Nimzo-Indian: Rubinstein: 5 Bd3 d5 including 6 Ne2, but excluding 6 a3.} b6 {[%emt 0:03:41]} 9. O-O {[%emt 0:05:45]} Bf8 {[%emt 0:03:21]} 10. Nf4 {[%emt 0:03:17] The position is equal.} Bb7 {[%emt 0:04:27]} 11. Qf3 {[%emt 0:01:41] [#]} g6 $146 {[%emt 0:02:06]} ({Predecessor:} 11... a6 12. Rad1 Ra7 13. Bc2 c5 14. dxc5 bxc5 15. Qh3 g6 16. Nce2 Bc6 17. Bc3 Nbd7 {0-1 (37) Navara,D (2735)-Inarkiev,E (2686) Gjakova 2016 CBM 173 [Besenthal,K]}) 12. Rad1 {[%emt 0:04:10]} Bg7 {[%emt 0:02:26]} 13. Rfe1 {[%emt 0:08:22]} Ne4 {[%emt 0:13:12]} 14. Bc2 {[%emt 0:01:08]} Nxd2 {[%emt 0:06:08]} 15. Rxd2 {[%emt 0:00:20][%cal Rc3d5]} c6 {[%emt 0:00:04]} 16. e4 {[%emt 0:02:33]} Na6 {[%emt 0:02:21][%cal Bb8a6,Ba6c7,Bc7d5,Bd5b4][%mdl 32]} 17. e5 {[%emt 0:24:30]} Nc7 {[%emt 0:00:25]} 18. Qg3 {[%emt 0:00:08]} c5 {[%emt 0:08:53]} 19. Nfxd5 {[%emt 0:05:14]} Nxd5 $17 {[%emt 0:05:25]} 20. dxc5 {[%emt 0:00:06]} Bh6 {[%emt 0:16:10]} (20... bxc5 $17 {Strongly threatening ...Qa5.} 21. Bb3 c4 22. Bxc4 Qc7 23. Bxd5 Bxe5 24. Rxe5 (24. Nb5 $2 Bxg3 25. Red1 Bxh2+ 26. Kh1 Qe5 $19) 24... Rxe5) 21. Rd3 $2 {[%emt 0:14:37] [#] White does not recover from this.} (21. Rxd5 $1 $15 Bxd5 22. Rd1) 21... Bf4 $1 $19 {[%emt 0:02:48]} (21... bxc5 22. Bb3 Bf4 23. Qf3 Bxe5 24. Bxd5 Bxd5 25. Nxd5 $11 (25. Rxd5 Bxh2+ 26. Kf1 Rxe1+ 27. Kxe1 Qe7+ 28. Kf1 Bc7 $11)) 22. Qf3 {[%emt 0:02:07] [#]} Nb4 $1 {[%emt 0:01:28]} ({Weaker is} 22... bxc5 23. Bb3 Bxe5 24. Bxd5 Bxd5 25. Nxd5 $11 (25. Rxd5 Bxh2+ 26. Kf1 Rxe1+ 27. Kxe1 Qe7+ 28. Kf1 Bc7 $15)) ({Worse is} 22... Bxe5 23. Nxd5 bxc5 24. Bb3 $17 (24. Rxe5 $2 Rxe5 25. Ne3 Bxf3 $19)) (22... Rxe5 23. Rxe5 Bxe5 24. Bb3 $11) 23. Rxd8 {[%emt 0:02:33]} Bxf3 $40 {[%emt 0:00:08][%mdl 128] Black attacks with force. Really sharp! This bishop pair is nice.} 24. Rxe8+ {[%emt 0:00:47]} Rxe8 {[%emt 0:00:02]} 25. Ba4 {[%emt 0:03:05]} (25. gxf3 {was necessary.} Nxc2 26. Re4) 25... Bc6 {[%emt 0:03:03][%cal Bf3c6,Bc6a4,Ba4e8][%mdl 32]} ({Inferior is} 25... Rxe5 26. Rxe5 Bxe5 27. gxf3 $17) 26. Nd5 {[%emt 0:00:27]} (26. cxb6 $142 axb6 27. Bxc6 Nxc6 28. Nd5 Rxe5 29. Rd1) 26... Bxa4 {[%emt 0:00:57]} 27. Nf6+ {[%emt 0:00:09]} Kf8 {[%emt 0:00:20] Black is clearly winning.} 28. Nxe8 {[%emt 0:00:15]} Bxe8 {[%emt 0:00:15]} 29. Re4 {[%emt 0:02:22]} Nd5 {[%emt 0:00:09]} 30. cxb6 {[%emt 0:00:17]} axb6 {[%emt 0:00:06]} 31. g3 {[%emt 0:00:14]} Bc1 {[%emt 0:01:31]} 32. Rd4 {[%emt 0:00:39]} Ne7 {[%emt 0:00:05]} 33. b3 {[%emt 0:00:17]} Nc6 {[%emt 0:00:52]} 34. Rc4 {[%emt 0:00:47]} Ba3 {[%emt 0:00:10]} 35. f4 {[%emt 0:00:06]} Nb4 {[%emt 0:00:46] Weighted Error Value: White=0.37/Black=0.08 (flawless)} 0-1

[Event "13th Asrian Memorial 2022"]
[Site "Yerevan"]
[Date "2022.06.13"]
[Round "7.2"]
[White "Ter-Sahakyan, Samvel"]
[Black "Andriasian, Zaven"]
[Result "1/2-1/2"]
[ECO "B90"]
[WhiteElo "2640"]
[BlackElo "2584"]
[Annotator "TA"]
[PlyCount "51"]
[EventDate "2022.06.07"]
[EventType "swiss"]
[EventCountry "ARM"]
[SourceTitle "playchess.com"]
[Source "ChessBase"]
[SourceQuality "1"]
[TimeControl "40/5400+30:1800+30"]

{[%evp 32,51,27,7,93,0,2,0,0,0,0,0,0,-1,-24,-33,0,0,0,-22,-3,-31]} 1. e4 {[%emt 0:33:22]} c5 {[%emt 0:00:07]} 2. Nf3 {[%emt 0:00:06]} d6 {[%emt 0:00:06]} 3. d4 {[%emt 0:00:05]} cxd4 {[%emt 0:00:05]} 4. Nxd4 {[%emt 0:00:05]} Nf6 {[%emt 0:00:09]} 5. Nc3 {[%emt 0:00:05]} a6 {[%emt 0:00:06]} 6. Be3 {[%emt 0:01:14]} Ng4 {[%emt 0:00:26]} 7. Bc1 {[%emt 0:01:24]} Nf6 {[%emt 0:00:07]} 8. f3 {[%emt 0:00:05]} e5 {[%emt 0:00:10]} 9. Nb3 {[%emt 0:00:06]} Be7 {[%emt 0:00:07]} 10. Be3 {[%emt 0:00:17]} O-O {[%emt 0:00:14]} 11. Qd2 {[%emt 0:10:04]} Be6 {[%emt 0:00:24]} 12. O-O-O {[%emt 0:00:05]} Nbd7 {[%emt 0:00:07]} 13. g4 {[%emt 0:00:26]} b5 {[%emt 0:00:08]} 14. g5 {[%emt 0:00:15]} Nh5 {[%emt 0:00:12]} 15. Kb1 {[%emt 0:06:02]} Qc7 $1 {[%emt 0:00:15][%mdl 4] 15...Qc7 is setting a new trend.} 16. Nd5 {[%emt 0:18:09]} Bxd5 {[%emt 0:00:10]} 17. exd5 {[%emt 0:00:03]} f6 {[%emt 0:03:41] [#] B90: Sicilian Najdorf: Unusual White 6th moves, 6 Be3 Ng4 and 6 Be3 e5.} (17... Nb6 $1 $11 {keeps the balance.}) 18. gxf6 {[%emt 0:09:46]} (18. g6 $1 $16) 18... Bxf6 $11 {[%emt 0:00:48]} 19. c4 {[%emt 0:10:00]} bxc4 {[%emt 0:02:07]} 20. Rc1 {[%emt 0:00:25]} Nb6 {[%emt 0:07:46]} 21. Na5 {[%emt 0:01:37]} Nf4 {[%emt 0:06:24] [#] Inhibits Bd3.} 22. Nxc4 $5 $146 {[%emt 0:04:26][%mdl 8] An interesting novelty.} ({Predecessor:} 22. Bxc4 Nxc4 23. Nxc4 Qd7 24. Bxf4 exf4 25. Nb6 Qf5+ 26. Qc2 Qxc2+ 27. Rxc2 Rad8 28. Re1 Bd4 29. Nc4 Rf5 30. Re4 {0-1 (45) Gross,D (2484)-Dinstuhl,V (2412) Germany 2000}) 22... Nxc4 {[%emt 0:00:58]} 23. Rxc4 {[%emt 0:00:38]} Qd7 {[%emt 0:04:45]} 24. Rc6 {[%emt 0:01:34] The position is equal.} Rab8 {[%emt 0:05:52]} 25. Rc2 {[%emt 0:20:51]} Qf5 {[%emt 0:16:25][%cal Oa6a5]} (25... a5 $5) 26. Bxf4 {[%emt 0:04:21] Weighted Error Value: White=0.17 (very precise) /Black=0.30} 1/2-1/2